bitfinex/quotes_SOLUSD_20250217
["timestamp","ask_amount","ask_price","bid_price","bid_amount"]
[1739806686802,9958.8133069,182.3,182.29,60.29078605]
[1739806687368,9958.8133069,182.3,182.29,42.41552972]
[1739806687873,9958.8133069,182.3,182.29,19.79347637]
[1739806688102,9958.8133069,182.3,182.29,5.4857]
[1739806688297,9958.8133069,182.3,182.28,5.486]
[1739806688802,9958.8133069,182.3,182.25,5.5166]
[1739806688982,0.82217464,182.29,182.25,0.03]
[1739806689175,17.87525633,182.28,182.25,0.03]
[1739806689501,18.69743097,182.27,182.25,0.03]
[1739806689971,17.87525633,182.27,182.25,0.03]
[1739806690602,32.1092795,182.26,182.25,0.03]
[1739806691491,32.1092795,182.26,182.21,0.03]
[1739806691712,31.28710486,182.22,182.21,0.03]
[1739806692006,17.87525633,182.23,182.21,0.03]
[1739806692314,31.28710486,182.25,182.21,0.03]
[1739806692613,42.07385973,182.25,182.21,0.03]
[1739806692789,29.48418584,182.24,182.21,0.03]
[1739806692984,42.07385973,182.22,182.21,0.03]
[1739806693420,13.41184853,182.21,182.15,0.063]
[1739806693720,50.04065973,182.22,182.15,0.063]
[1739806693721,28.6620112,182.18,182.15,0.063]
[1739806694133,29.48418584,182.18,182.15,0.063]
[1739806694335,13.41184853,182.16,182.15,0.063]
[1739806694507,42.89603437,182.16,182.15,0.063]
[1739806695156,71.55804557,182.16,182.14,0.03]
[1739806695433,42.07385973,182.15,182.14,0.03]
[1739806695746,13.41184853,182.15,182.14,0.03]
[1739806696204,42.07385973,182.15,182.14,0.03]
[1739806697029,0.82217464,182.16,182.14,0.03]
[1739806697030,28.6620112,182.16,182.14,0.03]
[1739806697339,28.6620112,182.17,182.14,0.03]
[1739806697638,9929.9952957,182.1,182.08,0.82359316]
[1739806697812,9929.9952957,182.1,182.09,20.0]
[1739806698138,9929.9952957,182.1,182.09,54.1537112]
[1739806701341,9929.9952957,182.1,182.09,5.4917]
[1739806701650,9929.9952957,182.1,182.09,25.4917]
[1739806702165,9929.9952957,182.1,182.09,20.0]
[1739806702679,9929.9952957,182.1,182.09,25.4917]
[1739806702965,9929.9952957,182.1,182.09,20.0]
[1739806703335,9929.9952957,182.1,182.09,25.4917]
[1739806703840,9833.69573859,182.0,181.98,48.58485973]
[1739806704154,9680.79903156,182.0,181.99,60.79743254]
[1739806704356,9546.98823356,182.0,181.99,60.79743254]
[1739806704845,9409.53359813,182.0,181.99,60.79743254]
[1739806705043,9326.88329513,182.0,181.99,66.29223254]
[1739806705762,9310.64329513,182.0,181.99,66.29223254]
[1739806706127,9301.64336074,182.0,181.99,66.29223254]
[1739806706786,9301.64336074,182.0,181.99,49.79220054]
[1739806707080,9301.64336074,182.0,181.99,34.1568112]
[1739806708581,9301.64336074,182.0,181.99,5.4948]
[1739806709756,9301.64336074,182.0,181.97,28.6620112]
[1739806709966,29.69226965,181.99,181.94,5.4963]
[1739806710190,28.6620112,181.98,181.93,5.5265]
[1739806710563,29.69244838,181.98,181.93,0.03]
[1739806710766,40.29245864,181.99,181.93,0.03]
[1739806711062,10.6,181.99,181.95,28.6620112]
[1739806711661,10.6,181.99,181.96,28.6620112]
[1739806711873,9301.64336074,182.0,181.95,28.6620112]
[1739806712071,29.69231522,181.99,181.93,0.03]
[1739806712359,28.6620112,181.98,181.93,0.03]
[1739806712759,9315.05520927,182.0,181.94,28.6620112]
[1739806712971,9301.64336074,182.0,181.96,28.6620112]
[1739806713171,9301.64336074,182.0,181.95,48.6620112]
[1739806713381,9301.64336074,182.0,181.96,28.6620112]
[1739806713883,9301.64336074,182.0,181.95,20.0]
[1739806714286,9301.64336074,182.0,181.96,28.6620112]
[1739806714498,9301.64336074,182.0,181.98,28.6620112]
[1739806714662,9301.64336074,182.0,181.99,34.1568112]
[1739806714864,9301.64336074,182.0,181.99,5.4948]
[1739806715065,9301.64336074,182.0,181.96,5.4957]
[1739806715798,9330.30537194,182.0,181.96,5.4957]
[1739806716384,9301.64336074,182.0,181.96,5.4957]
[1739806717871,9301.64336074,182.0,181.96,34.1577112]
[1739806719293,9301.64336074,182.0,181.96,47.8969112]
[1739806719505,9301.64336074,182.0,181.97,28.6620112]
[1739806719791,9301.70636074,182.0,181.96,47.8969112]
[1739806720594,9301.70636074,182.0,181.96,37.19277749]
[1739806721600,9216.51992743,181.9,181.89,31.36972602]
[1739806721964,9209.85992743,181.9,181.89,31.36972602]
[1739806722171,9203.19992743,181.9,181.89,31.36972602]
[1739806722475,9203.19992743,181.9,181.89,36.86752602]
[1739806722690,9200.39992743,181.9,181.89,36.86752602]
[1739806722887,9070.07889439,181.9,181.89,54.82540351]
[1739806723510,9070.07889439,181.9,181.89,23.45567749]
[1739806728503,9070.07889439,181.9,181.89,5.4978]
[1739806728704,9070.07889439,181.9,181.86,13.7462]
[1739806728705,9070.07889439,181.9,181.88,5.498]
[1739806729433,9070.07889439,181.9,181.87,5.5283]
[1739806729724,9070.07889439,181.9,181.87,0.03]
[1739806730719,1.03094342,181.89,181.87,0.03]
[1739806730923,9078.66839439,181.9,181.87,0.03]
[1739806731229,18.98881664,181.89,181.87,0.03]
[1739806731409,1.03093915,181.89,181.87,0.03]
[1739806731616,1.03094586,181.89,181.87,0.03]
[1739806732233,18.98882335,181.89,181.87,0.03]
[1739806732623,9046.5618169,181.8,181.79,16.01094594]
[1739806733628,9046.5618169,181.8,181.79,21.51174594]
[1739806733934,9046.5618169,181.8,181.79,39.46962343]
[1739806734331,9046.5618169,181.8,181.79,21.51174594]
[1739806734628,9046.5618169,181.8,181.79,37.21017749]
[1739806734926,9046.5618169,181.8,181.79,23.45867749]
[1739806735305,9055.3716169,181.8,181.79,5.5008]
[1739806736001,9046.5618169,181.8,181.79,5.5008]
[1739806736327,9046.5618169,181.8,181.79,23.45867749]
[1739806737121,9046.5618169,181.8,181.79,41.41655498]
[1739806737428,9046.5618169,181.8,181.79,5.5008]
[1739806737632,9046.5618169,181.8,181.79,23.45867749]
[1739806738122,9039.5618169,181.8,181.79,23.45867749]
[1739806738829,9039.5618169,181.8,181.79,41.41655498]
[1739806739002,8861.19037954,181.8,181.79,54.82840351]
[1739806739326,8861.19037954,181.8,181.79,41.41655498]
[1739806739327,8839.60937954,181.8,181.79,41.41655498]
[1739806739701,8839.60937954,181.8,181.79,54.82840351]
[1739806739901,8829.77037954,181.8,181.79,54.82840351]
[1739806740103,8817.67137954,181.8,181.79,54.82840351]
[1739806740335,8780.32337954,181.8,181.79,54.82840351]
[1739806740634,8635.27969654,181.8,181.79,54.82840351]
[1739806740945,8599.79004254,181.8,181.79,54.82840351]
[1739806741106,8541.64579254,181.8,181.79,54.82840351]
[1739806741307,8433.42176043,181.8,181.79,54.82840351]
[1739806741526,8267.9292519,181.8,181.79,54.82840351]
[1739806741744,8057.62374337,181.8,181.79,54.82840351]
[1739806741898,7793.65213603,181.8,181.79,60.8040764]
[1739806742331,7656.08264955,181.8,181.79,60.8040764]
[1739806742645,7518.51316307,181.8,181.79,60.8040764]
[1739806742930,7518.51316307,181.8,181.79,41.41655498]
[1739806743097,7518.51316307,181.8,181.79,23.45867749]
[1739806745645,7518.51316307,181.8,181.79,23.48867749]
[1739806745966,7325.40259182,181.8,181.79,54.85840351]
[1739806746143,7106.73628127,181.8,181.79,63.38004307]
[1739806746349,7090.12085327,181.8,181.79,63.38004307]
[1739806746526,6952.47560849,181.8,181.79,63.38004307]
[1739806746733,6900.82710849,181.8,181.79,63.38004307]
[1739806747029,6900.82710849,181.8,181.79,61.05724307]
[1739806747262,6900.82710849,181.8,181.79,24.49454768]
[1739806748053,6900.82710849,181.8,181.79,23.48867749]
[1739806748245,6900.82710849,181.8,181.79,5.5308]
[1739806748451,6900.82710849,181.8,181.79,23.48867749]
[1739806748761,6900.82710849,181.8,181.79,34.30592689]
[1739806749360,6900.82710849,181.8,181.79,5.5308]
[1739806749663,6900.82710849,181.8,181.79,0.03]
[1739806749828,6929.60223538,181.8,181.79,0.03]
[1739806750033,6900.82710849,181.8,181.79,0.03]
[1739806751040,6929.60223538,181.8,181.79,0.03]
[1739806751240,6900.82710849,181.8,181.79,0.03]
[1739806751663,6900.82710849,181.8,181.79,28.80512689]
[1739806752169,6900.82710849,181.8,181.79,34.30592689]
[1739806753162,6900.82710849,181.8,181.79,5.5308]
[1739806753655,6900.82710849,181.8,181.79,34.30592689]
[1739806755046,6900.82710849,181.8,181.79,63.08105378]
[1739806756264,6900.82710849,181.8,181.79,76.49290231]
[1739806756465,6898.06192844,181.8,181.79,76.49290231]
[1739806757175,6898.06192844,181.8,181.79,63.08105378]
[1739806757569,6762.4832214,181.8,181.79,76.49290231]
[1739806759362,6758.0832214,181.8,181.79,76.49290231]
[1739806759556,6727.6032214,181.8,181.79,76.49290231]
[1739806759766,6621.4390154,181.8,181.79,82.69174187]
[1739806760150,6614.7790154,181.8,181.79,82.69174187]
[1739806760673,6608.1190154,181.8,181.79,82.69174187]
[1739806760881,6608.1190154,181.8,181.79,64.08692397]
[1739806761954,6601.4590154,181.8,181.79,77.4987725]
[1739806762151,6459.22030836,181.8,181.79,82.69174187]
[1739806762963,6446.32230836,181.8,181.79,82.69174187]
[1739806763166,6386.81303281,181.8,181.79,82.69174187]
[1739806763367,6261.56742227,181.8,181.79,82.69174187]
[1739806763552,6140.18742227,181.8,181.79,82.69174187]
[1739806763751,5937.34370227,181.8,181.79,82.69174187]
[1739806764180,5931.04169627,181.8,181.79,82.69174187]
[1739806766291,5709.09188923,181.8,181.79,82.69174187]
[1739806766573,5528.13012323,181.8,181.79,82.69174187]
[1739806766778,5228.03898263,181.8,181.79,82.69174187]
[1739806767075,4975.51558202,181.8,181.79,82.69174187]
[1739806767262,4972.80658202,181.8,181.79,82.69174187]
[1739806767581,4930.94358202,181.8,181.79,82.69174187]
[1739806768077,4926.54358202,181.8,181.79,82.69174187]
[1739806768380,4895.22758202,181.8,181.79,82.69174187]
[1739806768668,4819.82258202,181.8,181.79,61.07847875]
[1739806769177,4723.36126852,181.8,181.79,61.07847875]
[1739806769958,4723.36126852,181.8,181.79,43.10998342]
[1739806770159,4723.36126852,181.8,181.79,37.91701405]
[1739806771056,4723.36126852,181.8,181.79,55.88550938]
[1739806771276,4723.36126852,181.8,181.79,61.28936764]
[1739806772261,4723.36126852,181.8,181.79,43.32087231]
[1739806772560,4723.36126852,181.8,181.79,61.28936764]
[1739806773783,4723.36126852,181.8,181.79,43.32087231]
[1739806774462,4723.36126852,181.8,181.79,29.90902378]
[1739806775386,4723.36126852,181.8,181.79,11.94052845]
[1739806775693,4723.36126852,181.8,181.79,24.50516552]
[1739806776053,4723.36126852,181.8,181.79,37.91701405]
[1739806776362,4723.36126852,181.8,181.79,43.32087231]
[1739806776885,4723.36126852,181.8,181.79,76.37087231]
[1739806780587,4684.09126852,181.8,181.79,94.33936764]
[1739806780796,4435.56484279,181.8,181.79,94.33936764]
[1739806781084,4388.53484279,181.8,181.79,94.33936764]
[1739806781289,4384.8548428,181.8,181.79,94.33936764]
[1739806781607,4342.3258718,181.8,181.79,94.33936764]
[1739806781813,4297.1815368,181.8,181.79,94.33936764]
[1739806781994,4282.3166108,181.8,181.79,94.33936764]
[1739806782308,4278.7516108,181.8,181.79,94.33936764]
[1739806782497,4260.3486108,181.8,181.79,94.33936764]
[1739806782700,4250.05861081,181.8,181.79,94.33936764]
[1739806782897,4182.22861081,181.8,181.79,94.33936764]
[1739806783210,4042.54327898,181.8,181.79,94.33936764]
[1739806783497,3917.79024594,181.8,181.79,94.33936764]
[1739806783712,3909.88624594,181.8,181.79,94.33936764]
[1739806783898,3893.47984594,181.8,181.79,94.33936764]
[1739806784105,3881.47984594,181.8,181.79,94.33936764]
[1739806784302,3873.56924594,181.8,181.79,94.33936764]
[1739806784607,3860.37414594,181.8,181.79,94.33936764]
[1739806784805,3765.75569494,181.8,181.79,94.33936764]
[1739806784978,3594.74810372,181.8,181.79,94.33936764]
[1739806785185,3346.9852195,181.8,181.79,101.15024086]
[1739806785495,3163.22621182,181.8,181.79,123.25099528]
[1739806785692,3086.9351304,181.8,181.79,123.25099528]
[1739806785922,2935.32658226,181.8,181.79,106.73099528]
[1739806786092,2733.21641976,181.8,181.79,101.15024086]
[1739806786283,2733.21641976,181.8,181.79,94.33936764]
[1739806786486,2719.39641976,181.8,181.79,94.33936764]
[1739806786711,2587.57041976,181.8,181.79,94.33936764]
[1739806786894,2494.8879907,181.8,181.79,94.33936764]
[1739806787095,2357.32607546,181.8,181.79,94.33936764]
[1739806787500,2181.61855624,181.8,181.79,94.33936764]
[1739806787786,2170.33855624,181.8,181.79,94.33936764]
[1739806787988,2127.28355624,181.8,181.79,94.33936764]
[1739806788388,1989.72302356,181.8,181.79,94.33936764]
[1739806788714,1983.06302356,181.8,181.79,61.28936764]
[1739806789088,1931.53902356,181.8,181.79,61.28936764]
[1739806792842,1820.61099052,181.8,181.79,61.28936764]
[1739806793321,1805.65645231,181.8,181.79,61.28936764]
[1739806793506,1791.41645231,181.8,181.79,68.10024086]
[1739806794808,1791.41645231,181.8,181.79,61.28936764]
[1739806795135,1791.41645231,181.8,181.79,43.32087231]
[1739806795531,1791.41645231,181.8,181.79,61.28936764]
[1739806800946,1680.48841927,181.8,181.79,61.28936764]
[1739806807134,1680.48841927,181.8,181.79,94.33936764]
[1739806807449,1680.48841927,181.8,181.79,76.37087231]
[1739806807748,1680.48841927,181.8,181.79,94.33936764]
[1739806808245,1680.48841927,181.8,181.79,58.40237698]
[1739806809543,1680.48841927,181.8,181.79,65.2132502]
[1739806809845,1680.48841927,181.8,181.79,81.7332502]
[1739806810025,1680.48841927,181.8,181.79,65.2132502]
[1739806810349,1569.56038623,181.8,181.79,65.2132502]
[1739806813324,1458.63235319,181.8,181.79,65.2132502]
[1739806816463,1377.7473291,181.8,181.79,65.2132502]
[1739806816632,1323.11291621,181.8,181.79,152.56700462]
[1739806816953,1323.11291621,181.8,181.79,169.08700462]
[1739806817149,1317.15057706,181.8,181.79,169.08700462]
[1739806817528,1317.15057706,181.8,181.79,256.22700462]
[1739806817728,1278.4372689,181.8,181.79,256.22700462]
[1739806819266,1181.53842591,181.8,181.79,256.22700462]
[1739806819962,1181.53842591,181.8,181.79,239.70700462]
[1739806820161,1181.53842591,181.8,181.79,233.8532502]
[1739806820362,1181.53842591,181.8,181.79,227.04237698]
[1739806821448,1181.53842591,181.8,181.79,236.93416576]
[1739806822366,1181.53842591,181.8,181.79,149.79416576]
[1739806825445,1181.53842591,181.8,181.79,103.33231723]
[1739806825957,1181.53842591,181.8,181.79,124.24823988]
[1739806827061,1181.53842591,181.8,181.79,110.83639135]
[1739806827452,1181.53842591,181.8,181.79,103.33231723]
[1739806827856,1181.53842591,181.8,181.79,116.74416576]
[1739806828671,1181.53842591,181.8,181.79,124.24823988]
[1739806830777,1100.65340182,181.8,181.79,131.06567499]
[1739806830978,1100.65340182,181.8,181.79,164.11567499]
[1739806831171,1084.63958292,181.8,181.79,164.11567499]
[1739806831473,1057.11958292,181.8,181.79,156.61160087]
[1739806833179,992.24837773,181.8,181.79,156.61160087]
[1739806833773,976.23455883,181.8,181.79,156.61160087]
[1739806834204,920.37014594,181.8,181.79,180.63567499]
[1739806834557,854.84014594,181.8,181.79,170.74388621]
[1739806834781,792.99231511,181.8,181.79,170.74388621]
[1739806834977,751.23231511,181.8,181.79,170.74388621]
[1739806835176,691.2966787,181.8,181.79,171.72918621]
[1739806835377,663.7766787,181.8,181.79,171.72918621]
[1739806835767,658.21428799,181.8,181.79,177.22018621]
[1739806835966,650.53501231,181.8,181.79,177.22018621]
[1739806836159,594.41632463,181.8,181.79,177.22018621]
[1739806836582,594.41632463,181.8,181.79,185.47994376]
[1739806836764,563.55191174,181.8,181.79,179.98894376]
[1739806836960,563.55191174,181.8,181.79,185.47994376]
[1739806837188,563.55191174,181.8,181.79,179.98894376]
[1739806837905,403.58557533,181.8,181.79,179.98894376]
[1739806838072,400.74034619,181.8,181.79,179.98894376]
[1739806838277,400.74034619,181.8,181.79,146.93894376]
[1739806838477,386.50034619,181.8,181.79,146.93894376]
[1739806838682,275.96077553,181.8,181.79,146.93894376]
[1739806838872,268.84077553,181.8,181.79,152.42994376]
[1739806839198,185.95901218,181.8,181.79,174.92042396]
[1739806839369,185.95901218,181.8,181.79,146.93894376]
[1739806839567,160.95901218,181.8,181.79,146.93894376]
[1739806839888,73.13459929,181.8,181.79,146.93894376]
[1739806840081,66.01459929,181.8,181.79,152.42994376]
[1739806840389,17.08129929,181.8,181.79,185.47994376]
[1739806840591,9.96129929,181.8,181.79,185.47994376]
[1739806840892,0.063,181.9,181.83,36.52]
[1739806841093,19.8076,181.98,181.88,20.0]
[1739806841094,16.96011233,181.98,181.88,20.0]
[1739806841302,16.96011233,181.98,181.92,20.0]
[1739806841465,16.96011233,181.98,181.93,1.00509615]
[1739806841806,16.96011233,181.98,181.96,20.0]
[1739806841969,16.96011233,181.98,181.97,1.00487521]
[1739806842171,16.96011233,181.98,181.97,11.25118556]
[1739806842997,16.96011233,181.98,181.97,3.60188556]
[1739806843805,16.96011233,181.98,181.94,20.0]
[1739806844092,6.9761,181.98,181.97,20.0]
[1739806844306,6.9761,181.98,181.97,27.40021684]
[1739806845210,6.9761,181.98,181.97,20.0]
[1739806845429,6.9761,181.98,181.95,8.31680794]
[1739806845589,12.9635,181.97,181.95,8.31680794]
[1739806845773,12.9635,181.97,181.87,94.50021684]
[1739806845977,19.06858531,181.95,181.87,94.50021684]
[1739806846274,12.9635,181.94,181.87,94.50021684]
[1739806846573,12.9635,181.94,181.87,87.1]
[1739806846775,12.9635,181.94,181.9,20.0]
[1739806846974,12.9635,181.98,181.9,20.0]
[1739806847210,12.9635,181.98,181.94,20.0]
[1739806848485,12.9635,181.98,181.97,20.0]
[1739806849223,12.9635,181.98,181.96,7.42677648]
[1739806852340,12.9635,181.98,181.96,7.42677648]
[1739806853438,13.0265,181.98,181.96,7.42677648]
[1739806855923,13.0265,181.98,181.95,0.03]
[1739806856535,17.94166805,182.01,181.95,0.03]
[1739806857140,17.94166805,182.02,181.97,20.0]
[1739806857344,13.41184853,182.06,181.99,20.0]
[1739806857525,17.94166805,182.03,181.99,20.0]
[1739806858227,17.94166805,182.02,181.99,20.0]
[1739806858827,17.94166805,182.01,181.99,20.0]
[1739806859655,30.51364058,182.0,181.99,20.0]
[1739806860626,12.57197253,182.0,181.99,20.0]
[1739806862743,37.92386805,182.05,181.99,20.0]
[1739806862938,17.94166805,182.03,181.99,20.0]
[1739806863138,17.94166805,182.0,181.99,20.0]
[1739806863534,17.94166805,182.02,181.99,20.0]
[1739806864631,17.94166805,182.03,181.99,20.0]
[1739806865125,17.94166805,182.02,181.99,20.0]
[1739806866161,17.97166805,182.02,181.99,20.063]
[1739806868636,11.51775705,182.02,181.99,20.063]
[1739806869055,11.48775705,182.01,181.99,20.063]
[1739806869267,11.48775705,182.01,181.99,0.063]
[1739806869641,11.51775705,182.02,181.99,0.063]
[1739806869862,11.48775705,182.0,181.99,0.063]
[1739806870037,46.06480558,182.0,181.99,0.063]
[1739806870448,47.09517601,182.0,181.99,0.063]
[1739806871334,46.06480558,182.0,181.99,0.063]
[1739806872157,47.09506756,182.0,181.96,3.67]
[1739806872460,24.89960558,181.97,181.96,3.67]
[1739806872763,25.93015455,181.97,181.96,3.67]
[1739806872942,13.41184853,181.96,181.95,0.03]
[1739806873147,24.89960558,181.96,181.95,0.03]
[1739806873337,32.53220558,181.96,181.95,0.03]
[1739806875550,13.41184853,181.94,181.87,20.0]
[1739806875750,11.48775705,181.9,181.87,20.0]
[1739806875942,11.48775705,181.91,181.87,20.0]
[1739806877763,11.48775705,181.93,181.87,20.0]
[1739806877968,131.0,181.95,181.89,20.0]
[1739806878271,24.06695705,181.97,181.91,20.0]
[1739806878443,11.48775705,181.95,181.91,20.0]
[1739806878763,25.99104853,181.97,181.87,20.0]
[1739806878764,11.48775705,181.92,181.87,20.0]
[1739806878983,11.48775705,181.89,181.87,20.0]
[1739806879288,11.48775705,181.89,181.87,0.03]
[1739806879442,11.48775705,181.88,181.87,20.03]
[1739806880671,24.89960558,181.88,181.87,0.03]
[1739806880838,156.93065218,181.88,181.87,0.03]
[1739806881041,155.89960558,181.88,181.87,0.03]
[1739806881236,155.89960558,181.88,181.8,0.063]
[1739806881453,11.48775705,181.81,181.8,0.063]
[1739806881657,24.89960558,181.81,181.8,0.063]
[1739806881860,37.75880558,181.81,181.8,0.063]
[1739806882281,26.27104853,181.81,181.8,0.063]
[1739806882855,44.26121863,181.81,181.8,0.063]
[1739806883476,45.29261018,181.81,181.8,0.063]
[1739806884453,44.26121863,181.81,181.8,0.063]
[1739806884661,175.26121863,181.81,181.8,0.063]
[1739806891385,44.26121863,181.81,181.8,0.063]
[1739806891584,45.29278967,181.81,181.8,0.063]
[1739806892597,44.26121863,181.81,181.8,0.063]
[1739806893871,62.25138873,181.81,181.8,0.063]
[1739806894572,44.26121863,181.81,181.8,0.063]
[1739806895085,62.25138873,181.81,181.8,0.063]
[1739806895493,44.26121863,181.81,181.8,0.063]
[1739806896482,13.41184853,181.81,181.8,0.063]
[1739806897664,12.444,181.85,181.8,0.063]
[1739806897868,12.444,181.85,181.8,18.0531701]
[1739806898096,59.85063726,181.88,181.8,18.0531701]
[1739806898097,70.20300736,181.88,181.81,17.9901701]
[1739806898293,13.41184853,181.87,181.82,17.9901701]
[1739806898504,13.41184853,181.87,181.81,17.9901701]
[1739806898684,31.40201863,181.87,181.81,17.9901701]
[1739806899012,17.9901701,181.86,181.8,18.0531701]
[1739806899672,31.40201863,181.87,181.81,17.9901701]
[1739806899877,17.9901701,181.86,181.8,18.0531701]
[1739806900387,31.40201863,181.87,181.81,17.9901701]
[1739806900779,32.4330787,181.87,181.81,17.9901701]
[1739806901509,31.40201863,181.87,181.81,17.9901701]
[1739806903107,32.43308686,181.87,181.81,17.9901701]
[1739806903302,13.41184853,181.87,181.82,17.9901701]
[1739806903504,17.9901701,181.89,181.82,17.9901701]
[1739806903808,13.41184853,181.89,181.82,17.9901701]
[1739806903979,31.40201863,181.89,181.82,17.9901701]
[1739806904697,13.41184853,181.89,181.83,17.9901701]
[1739806904884,70.20300736,181.92,181.86,17.9901701]
[1739806905078,52.21283726,181.92,181.87,17.9901701]
[1739806905422,148.9901701,181.93,181.86,17.9901701]
[1739806905801,17.9901701,181.94,181.88,17.9901701]
[1739806906301,13.41184853,181.93,181.88,17.9901701]
[1739806906890,13.47484853,181.93,181.88,17.9901701]
[1739806909796,13.47484853,181.93,181.87,37.9901701]
[1739806910201,13.41184853,181.92,181.87,37.9901701]
[1739806911713,13.41184853,181.92,181.89,20.0]
[1739806911916,13.41184853,181.92,181.87,17.9901701]
[1739806912214,13.41184853,181.9,181.84,25.8527701]
[1739806912416,31.40201863,181.9,181.84,7.8626]
[1739806912602,13.41184853,181.9,181.84,25.8527701]
[1739806912802,19.02106962,181.89,181.82,17.9901701]
[1739806912997,31.40201863,181.87,181.81,17.9901701]
[1739806913408,1.03089952,181.89,181.8,0.063]
[1739806913409,31.40201863,181.85,181.8,0.063]
[1739806913709,31.40201863,181.85,181.81,20.0]
[1739806913922,13.41184853,181.83,181.81,20.0]
[1739806914114,17.9901701,181.87,181.83,20.0]
[1739806914325,17.9901701,181.88,181.81,17.9901701]
[1739806914998,13.41184853,181.87,181.81,17.9901701]
[1739806915638,13.41184853,181.87,181.82,17.9901701]
[1739806916124,13.41184853,181.88,181.82,17.9901701]
[1739806917128,31.40201863,181.88,181.82,17.9901701]
[1739806918135,31.40201863,181.88,181.84,20.0]
[1739806920523,13.41184853,181.88,181.82,18.0201701]
[1739806920949,13.41184853,181.87,181.84,20.0]
[1739806921603,17.9901701,181.89,181.82,18.0201701]
[1739806922215,17.9901701,181.9,181.83,17.9901701]
[1739806922418,17.9901701,181.9,181.86,20.0]
[1739806922627,52.27583726,181.93,181.88,20.0]
[1739806922815,13.41184853,181.92,181.88,20.0]
[1739806923234,13.41184853,181.9,181.86,20.0]
[1739806923609,31.40201863,181.9,181.86,20.0]
[1739806923810,19.02102511,181.89,181.86,20.0]
[1739806924133,31.40201863,181.88,181.83,8.0497]
[1739806924718,17.9901701,181.84,181.82,0.03]
[1739806924942,32.43329521,181.83,181.82,0.03]
[1739806927444,13.41184853,181.82,181.8,0.063]
[1739806927741,32.43372946,181.81,181.8,0.063]
[1739806930322,14.44355936,181.81,181.8,0.063]
[1739806930523,32.43372946,181.81,181.8,0.063]
[1739806933825,32.43372946,181.81,181.79,0.03]
[1739806933826,34.18424853,181.8,181.79,0.03]
[1739806934038,70.16458873,181.8,181.79,0.03]
[1739806934242,70.16458873,181.8,181.76,0.063]
[1739806934440,17.9901701,181.77,181.76,0.063]
[1739806934642,32.43401338,181.77,181.76,0.063]
[1739806935432,37.93541338,181.77,181.76,0.063]
[1739806935627,32.43401338,181.77,181.76,0.063]
[1739806936459,13.41184853,181.76,181.66,20.0]
[1739806936750,38.7625701,181.8,181.66,20.0]
[1739806936751,17.9901701,181.71,181.66,20.0]
[1739806937064,13.41184853,181.74,181.66,20.0]
[1739806937065,19.02219411,181.73,181.66,37.9901701]
[1739806937456,17.9901701,181.74,181.67,17.9901701]
[1739806937658,19.0220665,181.77,181.7,17.9901701]
[1739806937857,52.21283726,181.82,181.72,17.9901701]
[1739806937858,17.9901701,181.79,181.72,17.9901701]
[1739806938046,19.02172733,181.8,181.73,17.9901701]
[1739806938241,17.9901701,181.81,181.74,17.9901701]
[1739806938440,17.9901701,181.82,181.75,17.9901701]
[1739806938644,19.02162177,181.83,181.76,17.9901701]
[1739806938862,17.9901701,181.84,181.77,17.9901701]
[1739806939453,1.03128355,181.85,181.77,17.9901701]
[1739806939666,19.02145365,181.85,181.78,17.9901701]
[1739806939844,17.9901701,181.85,181.79,17.9901701]
[1739806940361,17.9901701,181.87,181.8,26.2812701]
[1739806940676,17.9901701,181.87,181.81,17.9901701]
[1739806940837,17.9901701,181.87,181.8,26.2812701]
[1739806941345,17.9901701,181.87,181.81,17.9901701]
[1739806941547,13.41184853,181.87,181.81,17.9901701]
[1739806942158,13.41184853,181.87,181.8,8.2911]
[1739806942457,17.9901701,181.87,181.8,26.2812701]
[1739806942665,13.41184853,181.87,181.81,17.9901701]
[1739806943362,19.0842449,181.88,181.84,17.9901701]
[1739806943363,0.063,181.88,181.84,17.9901701]
[1739806944037,0.063,181.88,181.83,37.9901701]
[1739806947260,0.063,181.88,181.85,17.9901701]
[1739806947846,0.063,181.88,181.86,17.9901701]
[1739806948052,0.063,181.88,181.87,17.9901701]
[1739806948248,0.063,181.88,181.86,17.9901701]
[1739806948567,0.063,181.88,181.85,17.9901701]
[1739806948963,0.063,181.88,181.84,17.9901701]
[1739806949270,0.063,181.88,181.83,37.9901701]
[1739806950266,0.063,181.88,181.85,20.0]
[1739806950566,17.9901701,181.87,181.8,28.87341684]
[1739806950779,31.40201863,181.85,181.8,8.2911]
[1739806950981,17.9901701,181.83,181.76,26.2771701]
[1739806951160,31.40201863,181.81,181.76,8.287]
[1739806951367,1.0315446,181.8,181.76,8.287]
[1739806952671,19.0217147,181.8,181.76,0.03]
[1739806952987,17.9901701,181.78,181.76,0.03]
[1739806953286,32.43372554,181.77,181.76,0.03]
[1739806955160,14.44355544,181.77,181.76,0.03]
[1739806957490,32.43372554,181.77,181.76,0.03]
[1739806959708,14.44355544,181.77,181.76,0.03]
[1739806959989,131.0,181.83,181.76,0.03]
[1739806960169,17.9901701,181.81,181.76,0.03]